Cogmind - Beta 13 @@@ ROGUE MODE // 2024.04.01 @ 21:44:18 Player: MrDirtyHerb Result: Destroyed by as-60884 with Assembled Rifle Performance ------------- Evolutions (0) 0 Regions Visited (3) 600 Robots Destroyed (8) 40 Value Destroyed (157) 157 Prototype IDs (0) 0 Alien Tech Used (0) 0 Bonus (-218) -218 TOTAL SCORE: 579 Bonus ------- Friendly Fire -218 Cogmind --------- Core Integrity 0/250 Matter 246/300 Energy 85/100 System Corruption 4% Temperature Cool (14) Movement Core (50) Location -10/Exiles Parts ------- > --- POWER (1) -------- (None) > --- PROPULSION (2) --- (None) > --- UTILITY (2) ------ (None) > --- WEAPON (2) ------- Particle Gun > --- INVENTORY (5) ---- Light Ion Engine Fission Core Peak State ------------ > --- POWER ------------ Ion Engine > --- PROPULSION ------- Light Treads Light Treads > --- UTILITY ---------- Light Armor Plating Light Armor Plating > --- WEAPON ----------- Light Assault Rifle Light Assault Rifle > --- INVENTORY -------- (None) [Rating: 7] Favorites ----------- Power Ion Engine Engine Ion Engine Propulsion Light Treads Treads Light Treads Utility Light Armor Plating Device Sensor Array Processor Targeting Computer Protection Light Armor Plating Weapon Light Assault Rifle Energy Gun Particle Gun Ballistic Gun Light Assault Rifle Build | -11 -10 -10 -10 ------- Run | Yrd Mat Min Exi Slots Evolved . | . . . . Power . | . . . . Propulsion . | . . . . Utility . | . . . . Weapon . | . . . . Parts Attached 16 | 4 4 . 8 Power 4 | . 2 . 2 Engine 4 | . 2 . 2 Core . | . . . . Reactor . | . . . . Propulsion 3 | 2 . . 1 Treads 3 | 2 . . 1 Leg . | . . . . Wheel . | . . . . Hover . | . . . . Flight . | . . . . Utility 6 | . 2 . 4 Device 1 | . . . 1 Storage . | . . . . Processor 1 | . . . 1 Hackware . | . . . . Protection 4 | . 2 . 2 Artifact . | . . . . Weapon 3 | 2 . . 1 Energy Gun 1 | . . . 1 Energy Cannon . | . . . . Ballistic Gun 2 | 2 . . . Ballistic Cannon . | . . . . Launcher . | . . . . Special Weapon . | . . . . Impact Weapon . | . . . . Slashing Weapon . | . . . . Piercing Weapon . | . . . . Special Melee Weapon . | . . . . Unidentified Prototypes . | . . . . Parts Lost 7 | . 1 . 6 Power 1 | . . . 1 Propulsion 2 | . 1 . 1 Utility 2 | . . . 2 Weapon 2 | . . . 2 Highest Loss Streak 6 | . 1 . 6 To Critical Strikes . | . . . . Average Slot Usage (%) 92 | . 96 85 80 Engine 12 | . 12 14 13 Treads 23 | . 27 14 12 Device 1 | . . . 8 Processor 1 | . . . 8 Protection 23 | . 26 28 8 Ballistic Gun 28 | . 28 28 28 Naked Turns . | . . . . Heaviest Build 13 | 2 13 13 13 Greatest Support 40 | 40 40 20 20 Greatest Overweight (x) 2 | . . . 2 Average Overweight (x) . | . . . . Largest Inventory Capacity 5 | 5 5 5 5 Average Capacity 5 | 5 5 5 5 Most Carried 5 | 2 5 4 5 Average Carried 2 | . 2 4 3 Final Capacity 5 | 5 5 5 5 Final Carried 4 | . 4 4 2 Class Distribution -------------------- 100% | Mutant Dominant Class ---------------- Mutant | -10/Materials Mutant | -10/Mines Mutant | -10/Exiles Resources | -11 -10 -10 -10 ----------- Run | Yrd Mat Min Exi Matter Collected 347 | 231 99 . 17 Remotely . | . . . . Salvage Created 305 | . 169 . 136 Parts 23 | . 15 . 8 Haulers Intercepted . | . . . . Recyclers Shooed . | . . . . Parts Field Recycled . | . . . . Retrieved Matter . | . . . . Parts Self-Destructed . | . . . . Prevented . | . . . . Kills | -11 -10 -10 -10 ------- Run | Yrd Mat Min Exi Combat Hostiles Destroyed 5 | . 3 . 2 Guns 5 | . 3 . 2 Classes Destroyed 4 | . 2 . 2 Watcher 2 | . 2 . . Grunt 5 | . 3 . 2 Zionite 1 | . . . 1 Assembled 2 | . . . 2 Best Kill Streak 3 | . 2 . 3 Combat Bots Only 2 | . 2 . 2 Max Kills in Single Turn 2 | . 1 . 2 Gunslinging . | . . . . Exploded . | . . . . Melee . | . . . . Uniques/NPCs Destroyed . | . . . . Combat | -11 -10 -10 -10 -------- Run | Yrd Mat Min Exi Hostile Shots Fired 65 | . 25 . 40 Missed 18 | . 7 . 11 Damage Taken 940 | . 442 . 498 Core 251 | . 36 . 215 Absorbed by Shields . | . . . . Regen/Repaired (Parts) 30 | . 30 . . Core Remaining (%) 100 | 100 . . . Volleys Fired 40 | . 33 . 7 Largest 2 | . 2 . 2 Hottest 65 | . 40 . 65 Shots Fired 80 | . 66 . 14 Gun 80 | . 66 . 14 Cannon . | . . . . Launcher . | . . . . Special . | . . . . Kinetic 79 | . 66 . 13 Thermal 1 | . . . 1 Explosive . | . . . . Electromagnetic . | . . . . Robot Hit Streak 8 | . 8 . 4 Robot Miss Streak 4 | . 4 . 2 Penetration Max . | . . . . Secondary Targets 2 | . . . 2 Max Gunslinging Chain 1 | . . . 1 Shots Hit Robots 41 | . 31 . 10 Core Hits 21 | . 13 . 8 Critical Kills . | . . . . Critical Parts Destroyed . | . . . . Critical Strikes . | . . . . Melee Attacks . | . . . . Impact . | . . . . Slashing . | . . . . Piercing . | . . . . Sneak Attacks . | . . . . Combat Hostiles . | . . . . Follow-up Attacks . | . . . . Damage Inflicted 359 | . 259 . 100 Guns 358 | . 259 . 99 Cannons . | . . . . Explosions . | . . . . Melee . | . . . . Ramming 1 | . . . 1 Kinetic 341 | . 259 . 82 Thermal 17 | . . . 17 Explosive . | . . . . Electromagnetic . | . . . . Impact . | . . . . Slashing . | . . . . Piercing . | . . . . Highest Corruption 4 | . 1 1 4 Average Corruption 1 | . 1 1 1 Corruption Purged . | . . . . Corruption Blocked . | . . . . Effects 4 | . 3 . 1 Message Errors 1 | . 1 . . Heat Flow Errors 1 | . 1 . . Data Loss (minor) 1 | . 1 . . Misfires 1 | . . . 1 Overload Shots . | . . . . Overflow Damage . | . . . . Projectiles . | . . . . Explosions . | . . . . Melee . | . . . . Knockbacks . | . . . . Impact . | . . . . Kinetic . | . . . . Secondary . | . . . . Self-Inflicted Damage . | . . . . Shots . | . . . . Rammed 1 | . . . 1 Targets Rammed 1 | . . . 1 Kicked . | . . . . Crushed . | . . . . Highest Temperature 123 | . 123 . 14 Average Temperature 22 | . 23 . 10 Received Heat Transfer 123 | . 123 . . Siege Activations . | . . . . Robots Corrupted . | . . . . Combat Hostiles . | . . . . Parts Fried . | . . . . Impact Corruptions . | . . . . Robots Melted . | . . . . Combat Hostiles . | . . . . Parts Melted . | . . . . Heat Transferred 37 | . . . 37 Parts Sabotaged . | . . . . Parts Stolen . | . . . . Parts Stripped . | . . . . Power Chain Reactions . | . . . . Alert | -11 -10 -10 -10 ------- Run | Yrd Mat Min Exi Peak Influence 77 | . 77 6 . Initial 6 | . . 6 . Average 22 | . 27 6 . Maximum Alert Level . | . . . . Low Security (%) 100 | 100 100 100 . Level 1 . | . . . . Level 2 . | . . . . Level 3 . | . . . . Level 4 . | . . . . Level 5 . | . . . . High Security . | . . . . Max Security . | . . . . Squads Dispatched . | . . . . Investigation . | . . . . Extermination . | . . . . Reinforcement . | . . . . Assault . | . . . . Garrison . | . . . . Intercept . | . . . . Searches Triggered . | . . . . Construction Impeded . | . . . . Haulers Reinforced . | . . . . Active Scanning Responses . | . . . . Cargo Convoy Interrupts . | . . . . Stealth | -11 -10 -10 -10 --------- Run | Yrd Mat Min Exi Distress Signals . | . . . . Communications Jammed . | . . . . Distress Signals . | . . . . Times Spotted 17 | . 8 . 9 Peak Tracking Total 10 | . 3 . 10 Tactical Retreats . | . . . . Traps | -11 -10 -10 -10 ------- Run | Yrd Mat Min Exi Traps Triggered 3 | . 3 . . Indirectly . | . . . . Trap Hack Attempts . | . . . . Triggered . | . . . . Disarmed . | . . . . Reprogrammed . | . . . . Reused . | . . . . Traps Extracted . | . . . . Installed . | . . . . Triggered . | . . . . Machines | -11 -10 -10 -10 ---------- Run | Yrd Mat Min Exi Machines Disabled 1 | . . . 1 Max in Single Turn . | . . . . Machines Repaired . | . . . . Machines Dismantled . | . . . . Machines Sabotaged . | . . . . Overloaded Fab Kills . | . . . . Hacking | -11 -10 -10 -10 --------- Run | Yrd Mat Min Exi Machines Accessed 1 | . 1 . . Terminals . | . . . . Fabricators . | . . . . Repair Stations 1 | . 1 . . Recycling Units . | . . . . Scanalyzers . | . . . . Garrison Access . | . . . . Total Hacks 4 | . 4 . . Successful 3 | . 3 . . Failed 1 | . 1 . . Catastrophic . | . . . . Database Lockouts . | . . . . Manual . | . . . . Terminals . | . . . . Fabricators . | . . . . Repair Stations 4 | . 4 . . Recycling Units . | . . . . Scanalyzers . | . . . . Garrison Access . | . . . . Terminal Hacks . | . . . . Fabricator Hacks . | . . . . Repair Station Hacks 3 | . 3 . . Scan Component 1 | . 1 . . Repair 1 | . 1 . . Refit 1 | . 1 . . Recycling Unit Hacks . | . . . . Scanalyzer . | . . . . Garrison Access Hacks . | . . . . Unauthorized Hacks . | . . . . Terminals . | . . . . Fabricators . | . . . . Repair Stations . | . . . . Recycling Units . | . . . . Scanalyzers . | . . . . Garrison Access . | . . . . Data Cores Recovered . | . . . . Used . | . . . . Hacking Detections . | . . . . Full Trace Events . | . . . . Feedback Events . | . . . . Feedback Blocked . | . . . . Robot Schematics Acquired . | . . . . Robots Built . | . . . . Authchips . | . . . . Time . | . . . . Total Robot Build Rating . | . . . . Part Schematics Acquired . | . . . . Parts Built . | . . . . Authchips . | . . . . Time . | . . . . Total Part Build Rating . | . . . . Parts Repaired 1 | . 1 . . Time 26 | . 26 . . Parts Recycled . | . . . . Recycled Matter . | . . . . Retrieved Matter . | . . . . Retrieved Components . | . . . . Parts Scanalyzed . | . . . . Part Schematics Acquired . | . . . . Parts Damaged . | . . . . Bothacking | -11 -10 -10 -10 ------------ Run | Yrd Mat Min Exi Used RIF Installer . | . . . . Robots Hacked . | . . . . Non-combat . | . . . . Combat . | . . . . Robot Hacks Applied . | . . . . Relay Couplers Released . | . . . . Fabnet Peak Effective % . | . . . . Robots Rewired . | . . . . Allies Hacked . | . . . . Hacks Repelled . | . . . . Allies | -11 -10 -10 -10 -------- Run | Yrd Mat Min Exi Total Allies 3 | . . 3 . Largest Group 3 | . . 3 3 Highest-Rated Group 40 | . . 40 40 Highest-Rated Ally 16 | . . 16 16 Total Orders . | . . . . Ally Attacks 12 | . . . 12 Total Damage 132 | . . . 132 Kills 1 | . . . 1 Allies Corrupted . | . . . . Allies Melted . | . . . . Intel | -11 -10 -10 -10 ------- Run | Yrd Mat Min Exi Robot Analysis Total . | . . . . Derelict Logs Recovered . | . . . . Drone Launches . | . . . . Drone Recoveries . | . . . . Exploration | -11 -10 -10 -10 ------------- Run | Yrd Mat Min Exi Turns Passed 1105 | 74 736 95 200 Spaces Moved 604 | 47 395 60 102 Core 8 | 7 . . 1 Treads 596 | 40 395 60 101 Legs . | . . . . Wheels . | . . . . Hover . | . . . . Flight . | . . . . Fastest Speed 50 | 50 160 160 150 Average Speed 158 | 143 160 160 159 Slowest Speed 160 | 160 160 160 160 Overloaded Moves . | . . . . Propulsion Burnouts . | . . . . Robots Hopped . | . . . . Cave-ins Triggered . | . . . . Exploration Rate (%) 18 | 5 34 9 24 Regions Visited 3 Branch Regions 2 Pre-discovered Areas . | . . . . Known Exits Taken . | . . . . Unknown Exits Taken 3 | 1 1 1 . Scrap Searched . | . . . . Spaces Dug . | . . . . Terrain Destroyed . | . . . . Melee . | . . . . Projectile . | . . . . AOE . | . . . . Terrain Rammed . | . . . . Walls Destroyed . | . . . . Machines Disabled . | . . . . Actions | -11 -10 -10 -10 --------- Run | Yrd Mat Min Exi Total 691 | 54 446 59 132 Wait 6 | . 6 . . Move 601 | 46 394 59 102 Hop . | . . . . Pick Up 16 | 4 8 . 4 Fast Attach . | . . . . Attach 15 | 4 3 . 8 Detach 4 | . . . 4 Swap 1 | . 1 . . Drop 6 | . 1 . 5 Fire 40 | . 33 . 7 Melee . | . . . . Ram . | . . . . Kick . | . . . . Crush 1 | . . . 1 Escape Stasis . | . . . . Rewire 1 | . . . 1 Trap . | . . . . Miscellaneous . | . . . . Route ------- -11/Scrapyard -10/Materials -10/Mines -10/Exiles History --------- Turn | Location | Event 5 | -11/Scrapyard | Discovered new exit (range 15) 75 | -11/Scrapyard | Entered Materials 306 | -10/Materials | Build established: Mutant 569 | -10/Materials | Repaired Ion Engine? 774 | -10/Materials | Discovered new exit (range 7) 811 | -10/Materials | Entered Mines 863 | -10/Mines | Assisted by bots powering up and referring to "LRC-V3" 895 | -10/Mines | Deemed a non-threat by the Exiles lab entrance 896 | -10/Mines | Discovered new exit (range 5) 906 | -10/Mines | Entered Exiles 906 | -10/Exiles | Accompanied by 3 allies 997 | -10/Exiles | Met 8R-AWN 1028 | -10/Exiles | Met EX-HEX 1084 | -10/Exiles | Attacked by the Exiles 1104 | -10/Exiles | Core integrity fell below 50% 1105 | -10/Exiles | Core integrity fell below 20% 1106 | -10/Exiles | Destroyed by as-60884 with Assembled Rifle Last Messages --------------- HV Slug penetrates Wall. HV Slug penetrates Trooper 1a. Trooper 1a suffers critical hit (Destroy). Trooper 1a destroyed. as-47421 destroyed. Switching to secondary target: as-05325. Penetrated by HV Slug. HV Slug penetrates Machine. Sensor Array destroyed. Targeting Computer destroyed. Machine disabled. Ion Engine destroyed. System corrupted by crushing effect (+1). Penetrated by HV Slug. Lgt. Assault Rifle destroyed. System corrupted by crushing effect (+2). Penetrated by HV Slug. as-09429 destroyed. Acquired 17 matter. Penetrated by HV Slug. Map ----- +----------------------------------------------------+ | ?????????????????????????????????????????????????? | | ?????????????????????????????????????????????????? | | ?????????????????????????????????????????????????? | | ?????????????????????????????????????????????????? | | ?????????????????????????????????????????????????? | | ?????????????????????????????????????????????????? | | ?????????????????????????????????????????????????? | | ?????????????????????????????????????????????????? | | ?????????????????????????????????????????????????? | | ?????????????????????????????????????????????????? | | ?????????????????????????????????????????????????? | | ?????????????????????????????????????????????????? | | ?????????????????????????????????????????????????? | | ?????????????????????????????????????????????????? | | ?????????????? #????????????????????????????????? | | ?????????????? #????##########?????????????????? | | ????????????? #####"""""""""##???????????????? | | ????????????? """ """"##??????????????? | | ???????????? "" " #??????????????? | | ???????????? " """#??????????????? | | ???????????? "a"#???????????#### | | ??????????? " "##?????????##" | | ??????????? ""###???????#" | | ????????????"" """#??????##" | | ?????????????""" "#????### | | ????????????????#""" =@ ##???# | | ?????????????????#""" %!a=% ##?## | | ?????????????????#"" *=% ### | | ?????????????????#"" !%= g ## | | ?????????????????"""" [ #### | | ???????????????"" ""#?#" | | ?????????????"" #"""##?## | | ???????????? a ######???? | | ????????????? a a ##????????? | | ????????????? " ##?????????? | | ????????????? "" "" ""#??????????? | | ??????????????##""" " " ""#" % "##??????????? | | ????????????????####""" """##"""""""##???????????? | | ???????????????????###""""#?#########????????????? | | ?????????????????????####????????????????????????? | | ?????????????????????????????????????????????????? | | ?????????????????????????????????????????????????? | | ?????????????????????????????????????????????????? | | ?????????????????????????????????????????????????? | | ?????????????????????????????????????????????????? | | ?????????????????????????????????????????????????? | | ?????????????????????????????????????????????????? | | ?????????????????????????????????????????????????? | | ?????????????????????????????????????????????????? | | ?????????????????????????????????????????????????? | +----------------------------------------------------+ Best States ------------- Heat Dissipation 25 Energy Generation 10 Energy Capacity 250 Matter Stores 300 Matter Capacity 300 Sight Range 16 Robot Scan Range 14 Terrain Scan Density 10 Armor Coverage 300 Evasion (%) 40 Targeting Accuracy 5 Recoil Reduction 2 Item Schematics ----------------- None Robot Schematics ------------------ None Fabricated ------------ Nothing Alien Tech Used ----------------- None Achievements -------------- Part-time Mechanic Challenges ------------ None Game ------ Seed NullHeavyRigger Manual? 0 Play Time 00:18:57 Cumulative 2.1 hours Start 2024.04.01 @ 21:27:37 End 2024.04.01 @ 21:44:18 Sessions 1 Manual Loads 0 Difficulty Rogue Special Mode None Game No. 4 Rogue 4 Adventurer 0 Explorer 0 Win Type - Total 0 Types 0/0/0/0/0/0/0/0/0 Lore% 0 Gallery% 3 Achievement% 2 Wizard Run 0 Options --------- Layout 1 ASCII 0 Keyboard 1 Movement Arrows Keybinds 0 Fullscreen 2 Font 32/SmallcapsGlow Map View 50x35 Zoom Use 0% Tactical HUD 0 Map Filters NONE Filters NONE Steam 1 RUN: d0ebdd94-9715-4a1a-8dd5-80a35148fb99